fUSD/lending_fUSD_20240517
["ID","MTS","AMOUNT","RATE_DAILY","PERIOD"]
[327316552,1715981438685,-2825.49942166,0.000165,2]
[327316554,1715981438695,-304.64,0.00016522,2]
[327316556,1715981438704,-1000.0,0.00016534,2]
[327316558,1715981438714,-154.94,0.00016621,2]
[327316560,1715981438723,-2751.0,0.00016652,2]
[327316562,1715981438732,-250.0,0.00016688,2]
[327316564,1715981438741,-1335.2156,0.00016725,2]
[327316566,1715981438750,-154.94,0.00016729,2]
[327316567,1715981438759,-154.94,0.00016838,2]
[327316569,1715981438769,-6738.78,0.00016922,2]
[327316571,1715981438779,-5041.66,0.00016922,2]
[327316573,1715981438788,-1095.88,0.00016922,2]
[327316575,1715981438797,-154.94,0.00016946,2]
[327316577,1715981438807,-155.0,0.00017,2]
[327316579,1715981438817,-154.94,0.00017054,2]
[327316581,1715981438826,-167.0,0.00017083,2]
[327316583,1715981438835,-200.0,0.00017105,2]
[327316585,1715981438844,-154.94,0.00017163,2]
[327316587,1715981438855,-192.91490999,0.00017259,2]
[327316588,1715981438864,-154.94,0.00017271,2]
[327316589,1715981438874,-154.94,0.00017379,2]
[327316591,1715981438884,-154.94,0.00017487,2]
[327316593,1715981438894,-300.0,0.00017806,2]
[327316594,1715981438903,-155.0,0.00018,2]
[327316596,1715981438914,-250.00245932,0.00018,2]
[327316598,1715981438923,-2373.3265754,0.00018,2]
[327316707,1715981440245,-774.29829697,0.00018,2]
[327316709,1715981440258,-4123.42901544,0.00018,2]
[327316711,1715981440268,-252.35,0.00018445,2]
[327316713,1715981440279,-3823.43558456,0.00019,5]
[327316725,1715981440389,-2328.87606084,0.00019,5]
[327316728,1715981440401,-266.51398,0.00019,5]
[327316759,1715981440696,-696.92,0.00019,5]
[327316762,1715981440707,-17058.41804389,0.00019,5]
[327316764,1715981440719,-20784.33901619,0.00019,5]
[327316766,1715981440729,-155.0,0.00019,2]
[327316768,1715981440738,-10045.38719844,0.000191,2]
[327316770,1715981440748,-167.0,0.00019124,2]
[327316772,1715981440757,-300.0,0.00019176,2]
[327316774,1715981440768,-4964.59,0.00019178,2]
[327316776,1715981440778,-8934.71943531,0.000192,2]
[327316778,1715981440788,-200.0,0.00019243,2]
[327316780,1715981440799,-304.64,0.00019262,2]
[327316782,1715981440809,-500.0,0.00019469,2]
[327316784,1715981440819,-500.0,0.00019478,2]
[327316786,1715981440829,-500.0,0.00019486,2]
[327316788,1715981440839,-500.0,0.00019495,2]
[327316790,1715981440849,-1087.39377194,0.000195,2]
[327316792,1715981440859,-500.0,0.00019504,2]
[327316794,1715981440869,-500.0,0.00019513,2]
[327316796,1715981440879,-500.0,0.00019522,2]
[327316798,1715981440889,-599.9348,0.000199,2]
[327316800,1715981440900,-1000.0,0.000199,2]
[327316803,1715981440910,-167.0,0.00019903,2]
[327316804,1715981440919,-1262.20040305,0.0002,2]
[327316806,1715981440930,-9948.02916057,0.0002,2]
[327316808,1715981440939,-256.45860597,0.0002,2]
[327316810,1715981440949,-155.0,0.0002,2]
[327316812,1715981440959,-195.94399156,0.0002,2]
[327316814,1715981440970,-11969.3516162,0.0002,2]
[327316815,1715981440981,-2000.0,0.0002,15]
[327316817,1715981440991,-1772.34471026,0.0002,2]
[327316819,1715981441001,-627.55958488,0.0002,2]
[327316821,1715981441011,-1654.0941253,0.0002,2]
[327316823,1715981441022,-167.0,0.00020176,2]
[327316825,1715981441032,-363.73,0.00020447,2]
[327316827,1715981441042,-1377.13975845,0.00021,2]
[327316829,1715981441052,-167.0,0.00021228,2]
[327316831,1715981441061,-200.0,0.00021381,2]
[327316833,1715981441071,-2500.0,0.000218,2]
[327316835,1715981441081,-12988.60210523,0.000219,2]
[327316837,1715981441090,-1503.1,0.00021918,2]
[327316839,1715981441100,-2000.0,0.00021918,2]
[327316841,1715981441110,-500.0,0.00021918,2]
[327316843,1715981441119,-500.0,0.00021918,2]
[327316845,1715981441129,-500.0,0.00021918,2]
[327316847,1715981441138,-500.0,0.00021918,2]
[327316849,1715981441148,-500.0,0.00021918,2]
[327316851,1715981441158,-500.0,0.00021918,2]
[327316853,1715981441168,-10594.09604008,0.00022,2]
[327316855,1715981441177,-304.64,0.00022002,2]
[327316857,1715981441187,-167.0,0.00022281,2]
[327316859,1715981441196,-2728.94,0.00022738,2]
[327316861,1715981441206,-10045.3871984,0.00022748,2]
[327316862,1715981441215,-500.0,0.00022782,2]
[327316864,1715981441224,-500.0,0.00022782,2]
[327316866,1715981441234,-500.0,0.00022782,2]
[327316868,1715981441246,-295.43521067,0.00023067,2]
[327316870,1715981441255,-3845.46030413,0.000234,2]
[327316872,1715981441265,-200.0,0.0002352,2]
[327316874,1715981441275,-200.0,0.00023709,2]
[327316876,1715981441285,-359.75,0.00023973,2]
[327316878,1715981441294,-830.62036784,0.00024,2]
[327316880,1715981441303,-17559.92510072,0.0002499,2]
[327316882,1715981441314,-248.23073121,0.00025,2]
[327316884,1715981441325,-430.17492864,0.00025,2]
[327316886,1715981441335,-575.04451306,0.00025,14]
[327316888,1715981441344,-260.05421603,0.00025,2]
[327316890,1715981441354,-321.96139267,0.00025,30]
[327316892,1715981441363,-1618.36473459,0.00025,10]
[327316894,1715981441372,-1777.58316315,0.00025,2]
[327316896,1715981441382,-314.00897572,0.00025,30]
[327316898,1715981441391,-2500.0,0.000255,2]
[327316900,1715981441400,-150.0,0.000255,4]
[327316902,1715981441410,-200.0,0.00025658,2]
[327316904,1715981441419,-310.00336661,0.00026,2]
[327316906,1715981441429,-1500.0,0.00026,2]
[327316908,1715981441438,-150.0,0.00026,4]
[327316910,1715981441447,-800.0,0.00026356,2]
[327316912,1715981441456,-10045.3871984,0.00026397,2]
[327316914,1715981441466,-163.61730037,0.000264,2]
[327316916,1715981441475,-1500.0,0.000265,2]
[327316918,1715981441484,-150.0,0.000265,5]
[327316920,1715981441493,-200.0,0.00026846,2]
[327316922,1715981441502,-363.73,0.00026921,2]
[327316924,1715981441513,-155.0,0.00027,4]
[327316926,1715981441523,-3344.70218034,0.00027,2]
[327316928,1715981441532,-1500.0,0.00027,2]
[327316930,1715981441542,-150.0,0.00027,5]
[327316932,1715981441551,-2728.94,0.00027387,2]
[327316934,1715981441562,-150.0,0.00027397,2]
[327316936,1715981441572,-3948.56,0.00027397,10]
[327316938,1715981441582,-6165.01,0.00027397,10]
[327316940,1715981441593,-1500.0,0.000275,2]
[327316942,1715981441604,-150.0,0.000275,5]
[327316944,1715981441614,-2728.94,0.00027509,2]
[327316946,1715981441623,-2728.94,0.00027509,2]
[327316948,1715981441633,-500.0,0.00027518,2]
[327316950,1715981441643,-500.0,0.00027518,2]
[327316952,1715981441652,-354.26,0.00027518,2]
[327316954,1715981441662,-580.06,0.00027518,2]
[327316956,1715981441673,-500.0,0.00027518,2]
[327316958,1715981441683,-156511.5246,0.00027519,2]
[327316960,1715981441692,-500.0,0.0002753,2]
[327316962,1715981441702,-1109.13688914,0.00027554,2]
[327316964,1715981441712,-210.78443908,0.00027662,2]
[327316966,1715981441721,-160.0,0.000278,2]
[327316968,1715981441731,-1500.0,0.00028,2]
[327316970,1715981441741,-150.0,0.00028,5]
[327316972,1715981441751,-200.0,0.00028,2]
[327316974,1715981441760,-150.0,0.00028118,2]
[327316976,1715981441770,-157.051805,0.00028448,16]
[327316978,1715981441780,-150.0,0.000285,5]
[327316980,1715981441790,-160.0,0.00028662,30]
[327316982,1715981441800,-150.0,0.00028662,2]
[327316984,1715981441809,-150.0,0.00028662,2]
[327316986,1715981441819,-150.0,0.00028662,2]
[327316988,1715981441827,-150.0,0.00028662,2]
[327316990,1715981441836,-150.0,0.00028662,2]
[327316992,1715981441846,-150.0,0.00028662,2]
[327316994,1715981441855,-150.0,0.00028662,2]
[327316996,1715981441864,-150.0,0.00028662,2]
[327316998,1715981441874,-150.0,0.00028662,2]
[327317000,1715981441883,-150.0,0.00028662,2]
[327317002,1715981441893,-150.0,0.00028839,2]
[327317004,1715981441903,-156.84401569,0.000289,2]
[327317006,1715981441912,-186.93,0.00028977,2]
[327317008,1715981441922,-2728.94,0.0002899,2]
[327317010,1715981441932,-500.0,0.00028999,2]
[327317012,1715981441942,-457.01045889,0.00028999,2]
[327317014,1715981441951,-500.0,0.00028999,2]
[327317016,1715981441961,-500.0,0.00028999,2]
[327317018,1715981441971,-360073.19358632,0.00029,2]
[327317027,1715981442135,-1883.34798482,0.00029,2]
[327317028,1715981442265,-1000.15060334,0.00029,2]
[327317046,1715981443269,-250.0,0.00022435,2]
[327317047,1715981443279,-5044.91411873,0.00029,2]
[327317048,1715981443311,-289.62124792,0.00029,2]
[327317076,1715981446157,-426.1312614,0.00029,2]
[327317077,1715981446169,-3251.15711012,0.00029,2]
[327317085,1715981458012,7819.2146,5e-05,2]
[327317087,1715982217508,200.0,9.323e-05,30]
[327317088,1715982217537,200.0,9.323e-05,30]
[327317089,1715982217587,200.0,9.323e-05,30]
[327317090,1715982217644,201.92699003,9.323e-05,30]
[327317091,1715982272091,-155.0,9.368e-05,2]
[327317092,1715982272115,-2503.3327,9.369e-05,2]
[327317162,1715982632265,-644.69617691,9.193e-05,2]
[327317163,1715982632275,-173.94,9.293e-05,2]
[327317164,1715982632284,-200.0,9.322e-05,2]
[327317165,1715982632294,-16057.05502309,9.369e-05,2]
[327317167,1715982632306,-3660.51003438,9.369e-05,2]
[327317168,1715982632315,-157.18,9.668e-05,2]
[327317169,1715982632325,-506.7,0.00010959,2]
[327317170,1715982632334,-751.01567283,0.00011,2]
[327317171,1715982632344,-803.4540425,0.00011641,2]
[327317173,1715982632353,-150.0,0.00011644,2]
[327317174,1715982632363,-250.0,0.00011661,2]
[327317176,1715982632372,-625.68,0.00011667,2]
[327317178,1715982632382,-151.6,0.00011702,2]
[327317179,1715982632391,-269.65,0.00011714,2]
[327317180,1715982632400,-766.93,0.0001208,2]
[327317182,1715982632410,-168.687442,0.00012226,2]
[327317184,1715982632419,-151.859452,0.00012226,2]
[327317186,1715982632428,-150.27052,0.00012343,2]
[327317188,1715982632438,-156.86152,0.00012343,2]
[327317189,1715982632447,-150.82506,0.00012343,2]
[327317190,1715982632456,-167.901957,0.00012343,2]
[327317191,1715982632465,-156.861522,0.00012343,2]
[327317192,1715982632475,-151.859452,0.00012474,2]
[327317193,1715982632484,-156.86152,0.00012548,2]
[327317194,1715982632493,-150.82506,0.00012548,2]
[327317195,1715982632503,-758.57027439,0.00012579,2]
[327317196,1715982632512,-554.211,0.0001258,2]
[327317197,1715982632521,-373.9028,0.0001258,2]
[327317198,1715982632531,-168.687442,0.00012597,2]
[327317199,1715982632549,-1111.09966964,0.00012614,2]
[327317200,1715982632560,-758.57027433,0.00012615,2]
[327317201,1715982632571,-758.57027433,0.0001265,2]
[327317202,1715982632585,-7031.77103888,0.00012653,2]
[327317203,1715982632595,-466.66267694,0.00012678,2]
[327317204,1715982632605,-27.37729478,0.00012678,2]
[327317205,1715982632619,-240.27815061,0.00012678,2]
[327317206,1715982632629,-270.83777248,0.00012678,2]
[327317207,1715982632639,-709.75087905,0.00012678,2]
[327317208,1715982632649,-156.71208223,0.00012678,2]
[327317209,1715982632660,-2181.36170084,0.00012679,2]
[327317211,1715982632669,-404.54978707,0.00012679,2]
[327317213,1715982632679,-500.0,0.00012679,2]
[327317215,1715982632688,-318.88989999,0.00012679,2]
[327317217,1715982632698,-500.0,0.00012679,2]
[327317219,1715982632707,-500.0,0.00012679,2]
[327317221,1715982632717,-169.91,0.00012679,2]
[327317223,1715982632726,-500.0,0.00012679,2]
[327317224,1715982632735,-500.0,0.00012679,2]
[327317226,1715982632744,-500.0,0.00012679,2]
[327317228,1715982632754,-500.0,0.00012679,2]
[327317230,1715982632763,-624.16,0.00012679,2]
[327317232,1715982632773,-500.0,0.00012679,2]
[327317235,1715982632783,-510.97,0.00012679,2]
[327317236,1715982632793,-500.0,0.00012679,2]
[327317238,1715982632802,-258.48018859,0.00012679,2]
[327317240,1715982632811,-500.0,0.00012679,2]
[327317242,1715982632821,-500.0,0.00012679,2]
[327317244,1715982632830,-579.55,0.00012679,2]
[327317246,1715982632840,-596.32,0.00012679,2]
[327317248,1715982632849,-500.0,0.00012679,2]
[327317250,1715982632858,-500.0,0.00012679,2]
[327317252,1715982632868,-454.85045914,0.00012679,2]
[327317254,1715982632889,-45.14954086,0.00012679,2]
[327317255,1715982632899,-500.0,0.00012679,2]
[327317256,1715982632909,-500.0,0.00012679,2]
[327317257,1715982632918,-359.84,0.00012679,2]
[327317258,1715982632928,-632.57,0.00012679,2]
[327317259,1715982632938,-500.0,0.00012679,2]
[327317260,1715982632947,-500.0,0.00012679,2]
[327317261,1715982632957,-500.0,0.00012679,2]
[327317262,1715982632967,-473.60834302,0.00012679,2]
[327317263,1715982632976,-500.0,0.00012679,2]
[327317264,1715982632986,-500.0,0.00012679,2]
[327317265,1715982632995,-500.0,0.00012679,2]
[327317266,1715982633005,-500.0,0.00012679,2]
[327317267,1715982633015,-500.0,0.00012679,2]
[327317268,1715982633024,-500.0,0.00012679,2]
[327317269,1715982633034,-502.5175725,0.00012679,2]
[327317270,1715982633044,-500.0,0.00012679,2]
[327317271,1715982633053,-204.44,0.00012679,2]
[327317272,1715982633063,-500.0,0.00012679,2]
[327317273,1715982633073,-500.0,0.00012679,2]
[327317274,1715982633082,-500.0,0.00012679,2]
[327317275,1715982633092,-506.99522196,0.00012679,2]
[327317276,1715982633102,-500.0,0.00012679,2]
[327317277,1715982633112,-500.0,0.00012679,2]
[327317278,1715982633123,-500.0,0.00012679,2]
[327317279,1715982633132,-500.0,0.00012679,2]
[327317280,1715982633142,-500.0,0.00012679,2]
[327317281,1715982633151,-500.0,0.00012679,2]
[327317282,1715982633160,-500.62,0.00012679,2]
[327317283,1715982633170,-500.0,0.00012679,2]
[327317284,1715982633180,-350.97680166,0.00012679,2]
[327317285,1715982633193,-149.02319834,0.00012679,2]
[327317286,1715982633202,-500.0,0.00012679,2]
[327317287,1715982633212,-500.0,0.00012679,2]
[327317288,1715982633221,-500.0,0.00012679,2]
[327317289,1715982633231,-500.0,0.00012679,2]
[327317290,1715982633241,-500.0,0.00012679,2]
[327317291,1715982633250,-500.0,0.00012679,2]
[327317292,1715982633259,-500.0,0.00012679,2]
[327317293,1715982633272,-500.0,0.00012679,2]
[327317294,1715982633281,-500.0,0.00012679,2]
[327317295,1715982633291,-500.0,0.00012679,2]
[327317296,1715982633301,-500.0,0.00012679,2]
[327317297,1715982633311,-500.0,0.00012679,2]
[327317298,1715982633321,-500.0,0.00012679,2]
[327317299,1715982633331,-500.0,0.00012679,2]
[327317300,1715982633341,-500.0,0.00012679,2]
[327317301,1715982633352,-500.0,0.00012679,2]
[327317302,1715982633362,-500.0,0.00012679,2]
[327317303,1715982633373,-500.0,0.00012679,2]
[327317304,1715982633383,-500.0,0.00012679,2]
[327317305,1715982633393,-390.3,0.00012679,2]
[327317306,1715982633403,-500.0,0.00012679,2]
[327317307,1715982633412,-553.54307228,0.00012679,2]
[327317308,1715982633421,-500.0,0.00012679,2]
[327317309,1715982633431,-500.0,0.00012679,2]
[327317310,1715982633441,-500.0,0.00012679,2]
[327317311,1715982633451,-500.0,0.00012679,2]
[327317312,1715982633460,-500.0,0.00012679,2]
[327317313,1715982633472,-500.0,0.00012679,2]
[327317314,1715982633482,-155.0,0.00012679,2]
[327317315,1715982633492,-374.71,0.00012679,2]
[327317316,1715982633502,-500.70510173,0.00012679,2]
[327317317,1715982633511,-500.0,0.00012679,2]
[327317318,1715982633521,-500.0,0.00012679,2]
[327317319,1715982633530,-500.0,0.00012679,2]
[327317320,1715982633539,-500.0,0.00012679,2]
[327317321,1715982633550,-500.0,0.00012679,2]
[327317322,1715982633559,-458.28402381,0.00012679,2]
[327317323,1715982633570,-315.23300384,0.00012679,2]
[327317324,1715982633741,-184.76699616,0.00012679,2]
[327317325,1715982633752,-500.0,0.00012679,2]
[327317326,1715982633763,-500.0,0.00012679,2]
[327317327,1715982633773,-500.0,0.00012679,2]
[327317328,1715982633783,-500.0,0.00012679,2]
[327317329,1715982633792,-500.0,0.00012679,2]
[327317330,1715982633802,-500.0,0.00012679,2]
[327317331,1715982633811,-500.0,0.00012679,2]
[327317332,1715982633821,-500.0,0.00012679,2]
[327317333,1715982633830,-500.0,0.00012679,2]
[327317334,1715982633840,-324.55706316,0.00012679,2]
[327317335,1715982633849,-500.0,0.00012679,2]
[327317336,1715982633859,-500.0,0.00012679,2]
[327317337,1715982633868,-274.56618788,0.00012679,2]
[327317338,1715982633878,-500.0,0.00012679,2]
[327317339,1715982633888,-503.31237697,0.00012679,2]
[327317340,1715982633897,-500.0,0.00012679,2]
[327317341,1715982633907,-500.0,0.00012679,2]
[327317342,1715982633916,-460.87914049,0.00012679,2]
[327317343,1715982633926,-500.0,0.00012679,2]
[327317344,1715982633937,-500.0,0.00012679,2]
[327317345,1715982633946,-500.0,0.00012679,2]
[327317346,1715982633955,-505.23003614,0.00012679,2]
[327317347,1715982633965,-500.0,0.00012679,2]
[327317348,1715982633974,-349.89,0.00012679,2]
[327317349,1715982633983,-500.0,0.00012679,2]
[327317350,1715982633993,-150.0,0.00012679,2]
[327317351,1715982634002,-500.0,0.00012679,2]
[327317352,1715982634012,-500.0,0.00012679,2]
[327317353,1715982634022,-500.0,0.00012679,2]
[327317354,1715982634031,-223.52,0.00012679,2]
[327317355,1715982634041,-508.75979467,0.00012679,2]
[327317356,1715982634050,-500.0,0.00012679,2]
[327317357,1715982634060,-500.0,0.00012679,2]
[327317358,1715982634069,-234.81,0.00012679,2]
[327317359,1715982634078,-500.0,0.00012679,2]
[327317360,1715982634088,-500.0,0.00012679,2]
[327317361,1715982634097,-500.0,0.00012679,2]
[327317362,1715982634107,-500.0,0.00012679,2]
[327317363,1715982634118,-500.0,0.00012679,2]
[327317364,1715982634127,-514.78953903,0.00012679,2]
[327317365,1715982634137,-501.48529668,0.00012679,2]
[327317366,1715982634147,-507.9930901,0.00012679,2]
[327317367,1715982634156,-500.0,0.00012679,2]
[327317368,1715982634166,-500.0,0.00012679,2]
[327317369,1715982634176,-532.80550372,0.00012679,2]
[327317370,1715982634191,-15.26986162,0.00012679,2]
[327317371,1715982634200,-500.0,0.00012679,2]
[327317372,1715982634209,-234.29013838,0.00012679,2]
[327317373,1715982634234,-265.70986162,0.00012679,2]
[327317374,1715982634245,-500.0,0.00012679,2]
[327317375,1715982634255,-500.0,0.00012679,2]
[327317376,1715982634264,-270.74638129,0.00012679,2]
[327317377,1715982634275,-19.13361871,0.00012679,2]
[327317378,1715982634285,-268.67,0.00012679,2]
[327317379,1715982634294,-500.0,0.00012679,2]
[327317380,1715982634304,-500.0,0.00012679,2]
[327317381,1715982634313,-500.0,0.00012679,2]
[327317382,1715982634323,-500.0,0.00012679,2]
[327317383,1715982634331,-516.3,0.00012679,2]
[327317384,1715982634341,-500.0,0.00012679,2]
[327317385,1715982634350,-500.0,0.00012679,2]
[327317386,1715982634359,-500.0,0.00012679,2]
[327317387,1715982634368,-500.0,0.00012679,2]
[327317388,1715982634378,-500.0,0.00012679,2]
[327317389,1715982634387,-500.0,0.00012679,2]
[327317390,1715982634397,-509.47075226,0.00012679,2]
[327317391,1715982634406,-500.0,0.00012679,2]
[327317392,1715982634415,-134.1973142,0.00012679,2]
[327317393,1715982634429,-365.8026858,0.00012679,2]
[327317394,1715982634439,-504.14926568,0.00012679,2]
[327317395,1715982634448,-500.0,0.00012679,2]
[327317396,1715982634457,-500.0,0.00012679,2]
[327317397,1715982634467,-500.0,0.00012679,2]
[327317398,1715982634477,-500.0,0.00012679,2]
[327317399,1715982634488,-500.0,0.00012679,2]
[327317400,1715982634497,-500.0,0.00012679,2]
[327317401,1715982634507,-632.26,0.00012679,2]
[327317402,1715982634518,-226.7,0.00012679,2]
[327317403,1715982634528,-500.0,0.00012679,2]
[327317404,1715982634538,-500.0,0.00012679,2]
[327317405,1715982634549,-279.78,0.00012679,2]
[327317406,1715982634558,-500.0,0.00012679,2]
[327317407,1715982634569,-500.0,0.00012679,2]
[327317408,1715982634583,-500.0,0.00012679,2]
[327317409,1715982634594,-500.0,0.00012679,2]
[327317410,1715982634604,-500.0,0.00012679,2]
[327317411,1715982634613,-500.0,0.00012679,2]
[327317412,1715982634624,-500.0,0.00012679,2]
[327317413,1715982634635,-500.0,0.00012679,2]
[327317414,1715982634645,-500.0,0.00012679,2]
[327317415,1715982634656,-500.0,0.00012679,2]
[327317416,1715982634667,-500.0,0.00012679,2]
[327317417,1715982634676,-500.0,0.00012679,2]
[327317418,1715982634688,-500.0,0.00012679,2]
[327317419,1715982634697,-561.88,0.00012679,2]
[327317420,1715982634707,-500.0,0.00012679,2]
[327317421,1715982634716,-500.0,0.00012679,2]
[327317422,1715982634726,-500.0,0.00012679,2]
[327317423,1715982634735,-500.0,0.00012679,2]
[327317424,1715982634745,-500.0,0.00012679,2]
[327317425,1715982634754,-500.0,0.00012679,2]
[327317426,1715982634763,-500.0,0.00012679,2]
[327317427,1715982634772,-1923.47,0.00012679,2]
[327317428,1715982634783,-500.0,0.00012679,2]
[327317429,1715982634793,-500.0,0.00012679,2]
[327317430,1715982634804,-500.0,0.00012679,2]
[327317431,1715982634813,-500.0,0.00012679,2]
[327317432,1715982634985,-500.0,0.00012679,2]
[327317433,1715982634995,-549.62,0.00012679,2]
[327317434,1715982635005,-500.0,0.00012679,2]
[327317435,1715982635014,-500.0,0.00012679,2]
[327317436,1715982635024,-500.0,0.00012679,2]
[327317437,1715982635033,-500.0,0.00012679,2]
[327317438,1715982635043,-500.0,0.00012679,2]
[327317439,1715982635052,-500.0,0.00012679,2]
[327317440,1715982635062,-500.0,0.00012679,2]
[327317441,1715982635071,-500.0,0.00012679,2]
[327317442,1715982635081,-500.0,0.00012679,2]
[327317443,1715982635090,-500.0,0.00012679,2]
[327317444,1715982635099,-500.0,0.00012679,2]
[327317445,1715982635108,-500.0,0.00012679,2]
[327317446,1715982635117,-500.0,0.00012679,2]
[327317447,1715982635126,-500.0,0.00012679,2]
[327317448,1715982635135,-500.0,0.00012679,2]
[327317449,1715982635144,-472.5,0.00012679,2]
[327317450,1715982635153,-3000.0,0.00012679,2]
[327317451,1715982635163,-595.26,0.00012679,2]
[327317452,1715982635172,-500.0,0.00012679,2]
[327317453,1715982635181,-500.0,0.00012679,2]
[327317454,1715982635191,-500.0,0.00012679,2]
[327317455,1715982635201,-500.0,0.00012679,2]
[327317456,1715982635210,-500.0,0.00012679,2]
[327317457,1715982635219,-500.0,0.00012679,2]
[327317458,1715982635229,-500.0,0.00012679,2]
[327317459,1715982635239,-500.0,0.00012679,2]
[327317460,1715982635248,-500.0,0.00012679,2]
[327317461,1715982635257,-500.0,0.00012679,2]
[327317462,1715982635267,-500.0,0.00012679,2]
[327317463,1715982635276,-500.0,0.00012679,2]
[327317464,1715982635285,-500.0,0.00012679,2]
[327317465,1715982635294,-500.0,0.00012679,2]
[327317466,1715982635305,-500.0,0.00012679,2]
[327317467,1715982635315,-500.0,0.00012679,2]
[327317468,1715982635325,-500.0,0.00012679,2]
[327317469,1715982635334,-500.0,0.00012679,2]
[327317470,1715982635343,-500.0,0.00012679,2]
[327317471,1715982635352,-645.17,0.00012679,2]
[327317472,1715982635362,-500.0,0.00012679,2]
[327317473,1715982635374,-500.0,0.00012679,2]
[327317474,1715982635383,-500.0,0.00012679,2]
[327317475,1715982635393,-500.0,0.00012679,2]
[327317476,1715982635402,-500.0,0.00012679,2]
[327317477,1715982635412,-500.0,0.00012679,2]
[327317478,1715982635422,-1270.36,0.00012679,2]
[327317479,1715982635431,-500.0,0.00012679,2]
[327317480,1715982635441,-500.0,0.00012679,2]
[327317481,1715982635450,-500.0,0.00012679,2]
[327317482,1715982635460,-500.0,0.00012679,2]
[327317483,1715982635469,-500.0,0.00012679,2]
[327317484,1715982635478,-500.0,0.00012679,2]
[327317485,1715982635487,-473.9,0.00012679,2]
[327317486,1715982635497,-500.0,0.00012679,2]
[327317487,1715982635506,-500.0,0.00012679,2]
[327317488,1715982635516,-500.0,0.00012679,2]
[327317489,1715982635526,-500.0,0.00012679,2]
[327317490,1715982635535,-500.0,0.00012679,2]
[327317491,1715982635545,-891.11,0.00012679,2]
[327317492,1715982635554,-500.0,0.00012679,2]
[327317493,1715982635564,-500.0,0.00012679,2]
[327317494,1715982635575,-500.0,0.00012679,2]
[327317495,1715982635588,-500.0,0.00012679,2]
[327317496,1715982635597,-500.0,0.00012679,2]
[327317497,1715982635607,-500.0,0.00012679,2]
[327317498,1715982635617,-500.0,0.00012679,2]
[327317499,1715982635627,-500.0,0.00012679,2]
[327317500,1715982635636,-500.0,0.00012679,2]
[327317501,1715982635645,-450.69832707,0.00012679,2]
[327317502,1715982635657,-500.0,0.00012679,2]
[327317503,1715982635666,-500.0,0.00012679,2]
[327317504,1715982635676,-500.0,0.00012679,2]
[327317505,1715982635685,-500.0,0.00012679,2]
[327317506,1715982635695,-500.0,0.00012679,2]
[327317507,1715982635704,-500.0,0.00012679,2]
[327317508,1715982635713,-515.96511261,0.00012679,2]
[327317509,1715982635722,-500.0,0.00012679,2]
[327317510,1715982635732,-500.0,0.00012679,2]
[327317511,1715982635741,-500.0,0.00012679,2]
[327317512,1715982635751,-500.0,0.00012679,2]
[327317513,1715982635760,-500.0,0.00012679,2]
[327317514,1715982635769,-1236.32,0.00012679,2]